bitfinex-derivatives/quotes_BTCF0:USTF0_20241223
["timestamp","ask_amount","ask_price","bid_price","bid_amount"]
[1734926892515,0.00986112,96329.0,96324.0,0.0735]
[1734926892809,0.001,96325.0,96324.0,0.0745]
[1734926893103,0.3608,96342.0,96324.0,0.0735]
[1734926893104,0.05196,96329.0,96324.0,0.0735]
[1734926893308,0.05196,96329.0,96324.0,0.0745]
[1734926893309,0.001,96325.0,96324.0,0.0745]
[1734926894214,0.052962,96325.0,96324.0,0.001]
[1734926894596,0.06274024,96325.0,96324.0,0.001]
[1734926894894,0.051964,96320.0,96319.0,0.00574]
[1734926895098,0.051964,96320.0,96303.0,0.30572869]
[1734926895099,0.05197,96310.0,96303.0,0.30572869]
[1734926895905,0.051973,96304.0,96302.0,0.24423861]
[1734926897212,0.051973,96304.0,96300.0,0.1]
[1734926897409,0.06212234,96304.0,96300.0,0.1]
[1734926897600,0.051977,96296.0,96284.0,0.24423861]
[1734926897799,0.051983,96285.0,96284.0,0.24423861]
[1734926898409,0.051983,96285.0,96281.0,0.0759]
[1734926898604,0.00010597,96284.0,96281.0,0.0759]
[1734926899412,0.00010597,96284.0,96281.0,0.0769]
[1734926899812,0.054983,96285.0,96281.0,0.0769]
[1734926899813,0.05377268,96285.0,96281.0,0.0769]
[1734926900015,0.003,96284.0,96281.0,0.0769]
[1734926901515,0.002,96284.0,96281.0,0.0769]
[1734926902013,0.01019272,96285.0,96281.0,0.0759]
[1734926902315,0.002,96284.0,96281.0,0.0769]
[1734926903310,0.002,96285.0,96281.0,0.0769]
[1734926904700,0.051985,96283.0,96281.0,0.001]
[1734926905405,0.36132001,96285.0,96276.0,0.0757]
[1734926905606,0.002,96284.0,96281.0,0.001]
[1734926906313,0.3608,96285.0,96276.0,0.0757]
[1734926906617,0.002,96283.0,96281.0,0.001]
[1734926908007,0.3608,96285.0,96276.0,0.0757]
[1734926908202,0.002,96284.0,96281.0,0.001]
[1734926908408,0.053984,96284.0,96281.0,0.001]
[1734926908608,0.051984,96284.0,96281.0,0.001]
[1734926908817,0.002,96283.0,96281.0,0.001]
[1734926909006,0.002,96283.0,96282.0,0.3608]
[1734926909210,0.12419717,96304.0,96282.0,0.3608]
[1734926909211,0.12367716,96304.0,96282.0,0.3608]
[1734926909420,0.170518,96310.0,96301.0,0.051974]
[1734926909421,0.13927717,96310.0,96301.0,0.051974]
[1734926909606,0.13927717,96310.0,96302.0,0.0707]
[1734926909808,0.13927717,96310.0,96301.0,0.051974]
[1734926909809,0.14902451,96310.0,96292.0,0.3608]
[1734926910005,0.051976,96300.0,96292.0,0.3608]
[1734926910209,0.051979,96294.0,96292.0,0.3608]
[1734926910419,0.3608,96302.0,96293.0,0.051979]
[1734926910620,0.3608,96302.0,96297.0,0.051977]
[1734926910818,0.05197,96310.0,96299.0,0.051976]
[1734926911009,0.00155847,96312.0,96300.0,0.3608]
[1734926911211,0.01176593,96312.0,96302.0,0.051974]
[1734926911513,0.00155847,96312.0,96302.0,0.051974]
[1734926912618,0.00155847,96312.0,96302.0,0.053974]
[1734926913217,0.01153045,96312.0,96302.0,0.053974]
[1734926913523,0.00155847,96312.0,96302.0,0.053974]
[1734926914824,0.05352747,96312.0,96302.0,0.053974]
[1734926916126,0.05197,96310.0,96302.0,0.051974]
[1734926916329,0.051973,96304.0,96302.0,0.001]
[1734926917824,0.051979,96292.0,96286.0,0.0745]
[1734926920636,0.06206894,96292.0,96286.0,0.0745]
[1734926921233,0.06206894,96292.0,96291.0,0.0717]
[1734926922841,0.06206894,96292.0,96291.0,0.0707]
[1734926923729,0.051979,96292.0,96291.0,0.0707]
[1734926923933,0.15491799,96316.0,96303.0,0.051973]
[1734926924132,0.01150868,96312.0,96308.0,0.3608]
[1734926925635,0.01150868,96312.0,96309.0,0.0713]
[1734926928239,0.01150868,96312.0,96309.0,0.0733]
[1734926928240,0.05197,96311.0,96309.0,0.0733]
[1734926928441,0.05197,96311.0,96309.0,0.002]
[1734926929345,0.05197,96311.0,96309.0,0.003]
[1734926931543,0.051969,96311.0,96297.0,0.071]
[1734926931743,0.051976,96299.0,96297.0,0.071]
[1734926933346,0.051976,96299.0,96298.0,0.3608]
[1734926933546,0.051976,96299.0,96297.0,0.071]
[1734926935545,0.06226958,96299.0,96297.0,0.071]
[1734926936641,0.00155847,96312.0,96298.0,0.3608]
[1734926936948,0.12367716,96315.0,96306.0,0.3608]
[1734926937152,0.00757716,96315.0,96314.0,0.3608]
[1734926937454,0.15491799,96322.0,96320.0,0.051964]
[1734926937645,0.15491799,96322.0,96321.0,0.0706]
[1734926938251,0.051955,96338.0,96325.0,0.051962]
[1734926938551,0.15491799,96344.0,96337.0,0.3608]
[1734926939047,0.15491799,96344.0,96338.0,0.0737]
[1734926939951,0.05195,96347.0,96338.0,0.0737]
[1734926940754,0.05195,96347.0,96339.0,0.0772]
[1734926940953,0.051953,96341.0,96339.0,0.0772]
[1734926942049,0.051953,96341.0,96339.0,0.0842]
[1734926943057,0.051953,96341.0,96339.0,0.007]
[1734926943356,0.051958,96331.0,96330.0,0.24535274]
[1734926943548,0.051958,96331.0,96330.0,0.24459274]
[1734926943745,0.051958,96331.0,96328.0,0.24459274]
[1734926944049,0.5111,96347.0,96328.0,0.24459274]
[1734926944050,0.05196,96329.0,96328.0,0.24459274]
[1734926945057,0.05196,96329.0,96321.0,0.0706]
[1734926945447,0.05196,96329.0,96328.0,0.009]
[1734926945956,0.06219365,96329.0,96328.0,0.009]
[1734926946460,0.1035943,96340.0,96328.0,0.009]
[1734926946650,0.06222588,96341.0,96330.0,0.1035943]
[1734926946951,0.0015574,96348.0,96335.0,0.3608]
[1734926947259,0.0015574,96348.0,96339.0,0.051954]
[1734926947963,0.01174642,96348.0,96339.0,0.051954]
[1734926948152,0.0015574,96348.0,96339.0,0.051954]
[1734926948347,0.0015574,96348.0,96344.0,0.3608]
[1734926948549,0.0015574,96348.0,96345.0,0.0728]
[1734926948950,0.0015574,96348.0,96347.0,0.05195]
[1734926949156,0.09307043,96363.0,96351.0,0.051947]
[1734926949353,0.01001593,96363.0,96352.0,0.0751]
[1734926949558,0.051941,96364.0,96352.0,0.0751]
[1734926950262,0.051942,96363.0,96352.0,0.0751]
[1734926950447,0.01560001,96370.0,96352.0,0.0751]
[1734926950759,0.412739,96368.0,96353.0,0.051946]
[1734926951059,0.003,96364.0,96353.0,0.051946]
[1734926951563,0.05194,96365.0,96353.0,0.051946]
[1734926951966,0.37645947,96368.0,96353.0,0.051946]
[1734926952264,0.37585946,96368.0,96345.0,0.0728]
[1734926953162,0.3608,96360.0,96345.0,0.0728]
[1734926953364,0.05195,96347.0,96345.0,0.0728]
[1734926954960,0.051952,96343.0,96336.0,0.0743]
[1734926955166,0.051952,96343.0,96337.0,0.076]
[1734926956063,0.3608,96349.0,96337.0,0.076]
[1734926956365,0.051953,96342.0,96337.0,0.076]
[1734926957255,0.37130899,96349.0,96337.0,0.076]
[1734926957558,0.37078898,96349.0,96339.0,0.1035943]
[1734926958154,0.37078898,96349.0,96337.0,0.081]
[1734926958561,0.37078898,96349.0,96337.0,0.076]
[1734926958860,0.051954,96340.0,96339.0,0.002]
[1734926960164,0.051954,96340.0,96337.0,0.076]
[1734926960365,0.051954,96340.0,96337.0,0.078]
[1734926960760,0.051954,96340.0,96337.0,0.076]
[1734926960964,0.051954,96340.0,96339.0,0.006]
[1734926962069,0.051954,96340.0,96337.0,0.082]
[1734926962571,0.051955,96338.0,96337.0,0.082]
[1734926963873,0.051955,96338.0,96337.0,0.076]
[1734926964571,0.051955,96338.0,96337.0,0.083]
[1734926964869,0.051955,96338.0,96337.0,0.007]
[1734926965166,0.051955,96338.0,96330.0,0.18289244]
[1734926965167,0.412755,96338.0,96330.0,0.18289244]
[1734926965361,0.051958,96331.0,96330.0,0.04545159]
[1734926965570,0.05196,96329.0,96328.0,0.02720697]
[1734926965762,0.41276,96329.0,96328.0,0.02720697]
[1734926967975,0.41376,96329.0,96328.0,0.03620697]
[1734926970663,0.051961,96326.0,96318.0,0.1528]
[1734926970971,0.3618,96329.0,96302.0,0.051974]
[1734926970972,0.051964,96321.0,96302.0,0.051974]
[1734926971177,0.051964,96321.0,96304.0,0.24459274]
[1734926971868,0.412764,96321.0,96304.0,0.24459274]
[1734926972778,0.412764,96321.0,96303.0,0.0748]
[1734926973074,0.421764,96321.0,96319.0,0.00110631]
[1734926973270,0.43210609,96321.0,96319.0,0.00110631]
[1734926974190,0.07130609,96321.0,96319.0,0.00110631]
[1734926986475,0.07130609,96321.0,96302.0,0.078]
[1734926986777,0.07130609,96321.0,96293.0,0.0724]
[1734926986778,0.051978,96294.0,96293.0,0.0724]
[1734926987584,0.05208431,96294.0,96293.0,0.0724]
[1734926988387,0.05198,96291.0,96290.0,0.1477]
[1734926989888,0.05498,96291.0,96290.0,0.1477]
[1734926990083,0.003,96291.0,96290.0,0.1477]
[1734926990285,0.00010631,96294.0,96290.0,0.1477]
[1734926990582,0.051971,96308.0,96291.0,0.3608]
[1734926990772,0.09313794,96313.0,96306.0,0.3608]
[1734926992693,0.009,96313.0,96306.0,0.3618]
[1734926993491,0.009,96313.0,96307.0,0.0787]
[1734926994282,0.051971,96309.0,96307.0,0.0787]
[1734926995091,0.051971,96309.0,96307.0,0.0797]
[1734926995583,0.051971,96309.0,96307.0,0.0787]
[1734926995788,0.051971,96309.0,96307.0,0.0797]
[1734926995789,0.060971,96309.0,96307.0,0.0797]
[1734927000994,0.009,96309.0,96307.0,0.0797]
[1734927001996,0.051971,96308.0,96307.0,0.001]
[1734927002797,0.009,96309.0,96307.0,0.001]
[1734927003293,0.3608,96310.0,96307.0,0.001]
[1734927003500,0.009,96308.0,96307.0,0.001]
[1734927005298,0.009,96308.0,96302.0,0.24459274]
[1734927005501,0.06097,96309.0,96307.0,0.001]
[1734927005895,0.05197,96309.0,96302.0,0.24459274]
[1734927006099,0.009,96308.0,96307.0,0.001]
[1734927006502,0.05197,96309.0,96301.0,0.24459274]
[1734927006800,0.05197,96309.0,96307.0,0.001]
[1734927006801,0.06097,96309.0,96307.0,0.001]
[1734927007198,0.009,96308.0,96307.0,0.001]
[1734927008693,0.05997,96309.0,96303.0,0.24459274]
[1734927009294,0.05197,96309.0,96303.0,0.24459274]
[1734927009599,0.009,96308.0,96307.0,0.001]
[1734927009898,0.05197,96309.0,96303.0,0.24559274]
[1734927010103,0.06097,96309.0,96303.0,0.24559274]
[1734927010302,0.10356168,96316.0,96303.0,0.24559274]
[1734927010303,0.09313794,96316.0,96304.0,0.51627913]
[1734927010504,0.12447699,96322.0,96320.0,0.051964]
[1734927010698,0.12447699,96322.0,96321.0,0.1565]
[1734927011804,0.05196,96329.0,96321.0,0.1565]
[1734927012105,0.05196,96329.0,96326.0,0.3608]
[1734927012899,0.05296,96329.0,96326.0,0.3608]
[1734927013406,0.06228949,96329.0,96326.0,0.3608]
[1734927013607,0.06528949,96329.0,96326.0,0.3608]
[1734927013802,0.05496,96329.0,96326.0,0.3608]
[1734927014109,0.003,96329.0,96326.0,0.3608]
[1734927016806,0.05196,96328.0,96322.0,0.32282223]
[1734927017400,0.05196,96328.0,96322.0,0.0784]
[1734927018904,0.05296,96328.0,96322.0,0.0784]
[1734927019603,0.05196,96328.0,96322.0,0.0784]
[1734927021400,0.051955,96338.0,96322.0,0.0784]
[1734927021600,0.00060001,96341.0,96328.0,0.1035943]
[1734927021809,0.00155763,96351.0,96335.0,0.3608]
[1734927021810,0.12446003,96343.0,96335.0,0.3608]
[1734927022019,0.12446003,96343.0,96335.0,0.412756]
[1734927022314,0.12446003,96343.0,96337.0,0.051955]
[1734927022506,0.005,96338.0,96337.0,0.051955]
[1734927023210,0.001,96343.0,96337.0,0.051955]
[1734927023609,0.001,96338.0,96337.0,0.059955]
[1734927028407,0.001,96338.0,96337.0,0.008]
[1734927029915,0.0746,96338.0,96337.0,0.008]
[1734927030311,0.08482782,96338.0,96337.0,0.008]
[1734927030911,0.08482782,96338.0,96323.0,0.24442223]
[1734927031118,0.051962,96324.0,96323.0,0.24442223]
[1734927031316,0.051969,96311.0,96310.0,0.16764278]
[1734927032703,0.051969,96311.0,96298.0,0.051976]
[1734927032903,0.060969,96311.0,96310.0,0.001]
[1734927033311,0.060969,96311.0,96298.0,0.051976]
[1734927033520,0.060969,96311.0,96310.0,0.001]
[1734927034009,0.4473,96311.0,96290.0,0.30708552]
[1734927034321,0.05198,96291.0,96290.0,0.30708552]
[1734927035011,0.051983,96285.0,96284.0,0.15274168]
[1734927035217,0.6608,96291.0,96271.0,0.4285789]
[1734927035218,0.05199,96272.0,96271.0,0.4285789]
[1734927035400,0.3608,96277.0,96265.0,0.00076]
[1734927035605,0.051993,96267.0,96262.0,0.4284989]
[1734927035810,0.2071886,96275.0,96262.0,0.4277389]
[1734927036011,0.051995,96264.0,96262.0,0.4277389]
[1734927036214,0.051995,96264.0,96262.0,0.27912177]
[1734927036520,0.009,96272.0,96271.0,0.051991]
[1734927036712,0.00056001,96275.0,96273.0,0.051989]
[1734927037017,0.22805433,96283.0,96275.0,0.051989]
[1734927037217,0.22805433,96283.0,96282.0,0.3608]
[1734927037418,0.12446003,96283.0,96282.0,0.3608]
[1734927037611,0.18669004,96294.0,96282.0,0.6608]
[1734927037813,0.3608,96314.0,96293.0,0.3608]
[1734927038012,0.15493355,96320.0,96306.0,0.3608]
[1734927038321,0.15493355,96320.0,96315.0,0.3608]
[1734927038622,0.15493355,96320.0,96317.0,0.051966]
[1734927039115,0.15493355,96320.0,96319.0,0.051965]
[1734927039318,0.0725,96346.0,96319.0,0.3608]
[1734927039520,0.0825504,96346.0,96334.0,0.3608]
[1734927039825,0.051955,96337.0,96327.0,0.3608]
[1734927040016,0.051955,96337.0,96336.0,0.3608]
[1734927040424,0.0825504,96346.0,96336.0,0.3608]
[1734927040920,0.0825504,96346.0,96327.0,0.4643943]
[1734927041111,0.3608,96339.0,96327.0,0.3608]
[1734927041312,0.051951,96345.0,96327.0,0.3608]
[1734927042012,0.006,96343.0,96327.0,0.3608]
[1734927042215,0.006,96343.0,96335.0,0.3608]
[1734927042613,0.051946,96355.0,96335.0,0.3608]
[1734927042813,0.051946,96355.0,96344.0,0.3608]
[1734927043620,0.412747,96354.0,96344.0,0.3608]
[1734927044120,0.42321693,96354.0,96344.0,0.3608]
[1734927045523,0.42321693,96354.0,96344.0,0.3618]
[1734927046222,0.42321693,96354.0,96344.0,0.001]
[1734927046223,0.37126993,96354.0,96344.0,0.001]
[1734927046424,0.051951,96346.0,96344.0,0.001]
[1734927047917,0.051951,96346.0,96344.0,0.004]
[1734927059435,0.01560001,96345.0,96344.0,0.004]
[1734927060439,0.01560001,96345.0,96323.0,0.3608]
[1734927060643,0.01560001,96345.0,96344.0,0.005]
[1734927061140,0.06755101,96345.0,96344.0,0.005]
[1734927061537,0.06755101,96345.0,96323.0,0.3608]
[1734927061733,0.1035943,96333.0,96323.0,0.3618]
[1734927061941,0.1035943,96333.0,96323.0,0.001]
[1734927061942,0.3608,96331.0,96323.0,0.001]
[1734927062141,0.051968,96314.0,96299.0,0.3608]
[1734927062345,0.051973,96304.0,96299.0,0.3608]
[1734927063039,0.1035943,96310.0,96298.0,0.1536]
[1734927063234,0.051974,96302.0,96298.0,0.436]
[1734927063539,0.051975,96301.0,96298.0,0.0752]
[1734927063742,0.1035943,96310.0,96299.0,0.3608]
[1734927063940,0.051974,96302.0,96299.0,0.3608]
[1734927064139,0.11369139,96310.0,96290.0,0.3608]
[1734927064345,0.051977,96296.0,96290.0,0.3608]
[1734927064538,0.1035943,96300.0,96290.0,0.3608]
[1734927064740,0.05198,96292.0,96282.0,0.0752]
[1734927065150,0.3608,96299.0,96285.0,0.0099936]
[1734927065151,0.051981,96290.0,96285.0,0.0099936]
[1734927065345,0.051982,96288.0,96285.0,0.0099936]
[1734927065648,0.051982,96288.0,96282.0,0.0752]
[1734927067143,0.051982,96288.0,96286.0,0.00255773]
[1734927067144,0.060982,96288.0,96286.0,0.00255773]
[1734927067547,0.009,96288.0,96286.0,0.00255773]
[1734927067842,0.009,96288.0,96286.0,0.00155773]
[1734927069961,0.009,96288.0,96286.0,0.00255773]
[1734927070553,0.01019751,96292.0,96286.0,0.00255773]
[1734927070850,0.009,96288.0,96286.0,0.00255773]
[1734927071050,0.051973,96304.0,96287.0,0.3608]
[1734927071051,0.010376,96301.0,96287.0,0.3608]
[1734927071254,0.051967,96316.0,96300.0,0.051975]
[1734927071549,0.00056001,96313.0,96311.0,0.051969]
[1734927071755,0.01010152,96326.0,96312.0,0.076]
[1734927071945,0.1035943,96321.0,96312.0,0.076]
[1734927072145,0.051969,96311.0,96306.0,0.0725]
[1734927072853,0.1555583,96321.0,96306.0,0.0725]
[1734927073351,0.1555583,96321.0,96316.0,0.3608]
[1734927073850,0.051964,96321.0,96316.0,0.3608]
[1734927074349,0.2175718,96330.0,96316.0,0.3608]
[1734927074550,0.001,96321.0,96316.0,0.3608]
[1734927074943,0.001,96321.0,96318.0,0.051965]
[1734927076246,0.002,96321.0,96318.0,0.051965]
[1734927076647,0.002,96321.0,96320.0,0.051964]
[1734927076848,0.009,96321.0,96320.0,0.051964]
[1734927077957,0.0015575,96336.0,96329.0,0.051959]
[1734927078153,0.0015575,96336.0,96334.0,0.3608]
[1734927078852,0.051956,96335.0,96334.0,0.3608]
[1734927079650,0.051956,96335.0,96330.0,0.1535]
[1734927080253,0.052956,96335.0,96334.0,0.009]
[1734927080752,0.01715751,96336.0,96307.0,0.3608]
[1734927080753,0.051963,96323.0,96315.0,0.3608]
[1734927080943,0.01715751,96336.0,96315.0,0.3608]
[1734927080944,0.3608,96330.0,96315.0,0.3608]
[1734927081753,0.412759,96330.0,96315.0,0.3608]
[1734927081949,0.412759,96330.0,96320.0,0.1035943]
[1734927082147,0.0015575,96336.0,96323.0,0.3608]
[1734927082351,0.0015575,96336.0,96334.0,0.3608]
[1734927082855,0.06216909,96346.0,96334.0,0.3608]
[1734927083047,0.01021809,96346.0,96334.0,0.3608]
[1734927083246,0.051952,96343.0,96334.0,0.3608]
[1734927083453,0.3608,96351.0,96334.0,0.3608]
[1734927083656,0.001,96336.0,96335.0,0.051956]
[1734927084051,0.1035943,96350.0,96335.0,0.051956]
[1734927085047,0.1035943,96350.0,96334.0,0.3658]
[1734927085252,0.051951,96345.0,96334.0,0.3658]
[1734927086154,0.051951,96345.0,96334.0,0.3608]
[1734927086362,0.001,96336.0,96335.0,0.009]
[1734927086751,0.3608,96341.0,96334.0,0.3608]
[1734927086954,0.3608,96341.0,96334.0,0.3668]
[1734927087356,0.3608,96341.0,96334.0,0.3608]
[1734927087555,0.001,96336.0,96335.0,0.009]
[1734927088158,0.37271127,96341.0,96334.0,0.3688]
[1734927088359,0.37219126,96341.0,96334.0,0.3688]
[1734927089058,0.051956,96335.0,96334.0,0.008]
[1734927089864,0.052956,96336.0,96335.0,0.009]
[1734927090864,0.052956,96335.0,96334.0,0.009]
[1734927092263,0.052956,96335.0,96318.0,0.01017854]
[1734927092264,0.051956,96335.0,96318.0,0.01017854]
[1734927093052,0.052956,96335.0,96334.0,0.009]
[1734927093662,0.055956,96335.0,96318.0,0.06214354]
[1734927093862,0.051957,96334.0,96318.0,0.06214354]
[1734927094056,0.1035943,96333.0,96315.0,0.18291027]
[1734927094256,0.051963,96323.0,96315.0,0.18291027]
[1734927094456,0.3608,96325.0,96316.0,0.18291027]
[1734927094457,0.051964,96321.0,96316.0,0.18291027]
[1734927095058,0.1035943,96325.0,96316.0,0.18291027]
[1734927095364,0.1035943,96325.0,96317.0,0.3608]
[1734927096070,0.009,96321.0,96320.0,0.051964]
[1734927096762,0.0731,96332.0,96320.0,0.051964]
[1734927097068,0.3608,96339.0,96328.0,0.05196]
[1734927097268,0.3608,96339.0,96330.0,0.051959]
[1734927098360,0.3608,96339.0,96333.0,0.18291027]
[1734927098763,0.1035943,96340.0,96334.0,0.3608]
[1734927099157,0.11919431,96340.0,96334.0,0.3608]
[1734927099466,0.001,96339.0,96336.0,0.18291027]
[1734927100059,0.12019431,96340.0,96336.0,0.18291027]
[1734927100767,0.12019431,96340.0,96337.0,0.18291027]
[1734927100961,0.1045943,96340.0,96337.0,0.18291027]
[1734927101158,0.01660001,96340.0,96337.0,0.18291027]
[1734927101365,0.001,96340.0,96337.0,0.18291027]
[1734927101964,0.001,96340.0,96339.0,0.18291027]
[1734927102173,0.01560001,96340.0,96339.0,0.18291027]
[1734927102371,0.06248735,96342.0,96339.0,0.18291027]
[1734927102880,0.001,96340.0,96339.0,0.18291027]
[1734927103371,0.001,96340.0,96339.0,0.19091027]
[1734927103561,0.052954,96340.0,96339.0,0.008]
[1734927103956,0.051954,96340.0,96339.0,0.007]
[1734927105566,0.06213858,96340.0,96339.0,0.007]
[1734927105969,0.051956,96336.0,96332.0,0.18291027]
[1734927106369,0.001,96340.0,96332.0,0.18291027]
[1734927106570,0.001,96340.0,96336.0,0.18291027]
[1734927107079,0.01004276,96344.0,96336.0,0.18291027]
[1734927107260,0.12570247,96346.0,96344.0,0.051951]
[1734927107568,0.12414499,96346.0,96344.0,0.051951]
[1734927108372,0.12414499,96357.0,96347.0,0.05195]
[1734927108574,0.12414499,96357.0,96352.0,0.3608]
[1734927109559,0.12414499,96357.0,96345.0,0.18291027]
[1734927109766,0.051947,96353.0,96352.0,0.001]
[1734927110667,0.051947,96353.0,96349.0,0.30525083]
[1734927110867,0.01039665,96361.0,96349.0,0.30525083]
[1734927111067,0.051942,96362.0,96352.0,0.54441079]
[1734927111267,0.1555363,96362.0,96352.0,0.54441079]
[1734927112166,0.16568529,96362.0,96352.0,0.54441079]
[1734927112368,0.01014899,96362.0,96352.0,0.54641079]
[1734927112668,0.4643943,96362.0,96352.0,0.54641079]
[1734927113172,0.4663943,96362.0,96352.0,0.54441079]
[1734927113375,0.4663943,96362.0,96352.0,0.3608]
[1734927113776,0.1055943,96362.0,96352.0,0.3608]
[1734927114172,0.002,96362.0,96352.0,0.3608]
[1734927114367,0.002,96362.0,96353.0,0.051946]
[1734927114568,0.002,96362.0,96360.0,0.3608]
[1734927114976,0.002,96362.0,96360.0,0.28879999]
[1734927116172,0.01015515,96367.0,96360.0,0.28879999]
[1734927116479,0.001,96362.0,96360.0,0.28879999]
[1734927117071,0.001,96362.0,96361.0,0.051942]
[1734927117477,0.12414499,96383.0,96375.0,0.051935]
[1734927117779,0.00052001,96383.0,96375.0,0.412735]
[1734927117969,0.12414499,96385.0,96375.0,0.412735]
[1734927118563,0.12414499,96385.0,96377.0,0.051933]
[1734927118774,0.12414499,96385.0,96378.0,0.152]
[1734927119380,0.051929,96387.0,96378.0,0.152]
[1734927119880,0.051929,96387.0,96383.0,0.3608]
[1734927120583,0.129724,96396.0,96383.0,0.3608]
[1734927120775,0.01560001,96395.0,96383.0,0.3608]
[1734927121681,0.1035943,96393.0,96383.0,0.3608]
[1734927121876,0.1555193,96393.0,96383.0,0.3608]
[1734927122484,0.1555193,96393.0,96383.0,0.3628]
[1734927122690,0.088302,96396.0,96383.0,0.3628]
[1734927122691,0.088302,96396.0,96391.0,0.3608]
[1734927123686,0.001,96393.0,96391.0,0.3608]
[1734927124577,0.001,96393.0,96391.0,0.412726]
[1734927125384,0.1,96400.0,96398.0,0.051922]
[1734927125687,0.1,96400.0,96399.0,0.3608]
[1734927126777,0.101,96400.0,96399.0,0.3608]
[1734927127285,0.101,96400.0,96399.0,0.3698]
[1734927127482,0.101,96400.0,96399.0,0.5213]
[1734927127889,0.00052001,96419.0,96399.0,0.98668331]
[1734927128185,0.124665,96441.0,96434.0,0.051903]
[1734927128372,0.124665,96441.0,96418.0,0.7216]
[1734927128373,0.12414499,96441.0,96439.0,0.3608]
[1734927129580,0.01018481,96447.0,96439.0,0.3608]
[1734927129886,0.051894,96450.0,96439.0,0.3608]
[1734927132088,0.001,96450.0,96439.0,0.3608]
[1734927133287,0.001,96450.0,96440.0,0.0519]
[1734927134780,0.001,96450.0,96448.0,0.3608]
[1734927135780,0.077,96455.0,96448.0,0.3608]
[1734927136379,0.077,96455.0,96448.0,0.3618]
[1734927136587,0.077,96455.0,96449.0,0.051895]
[1734927137785,0.077,96455.0,96448.0,0.3618]
[1734927137991,0.051895,96450.0,96448.0,0.001]
[1734927138294,0.3608,96451.0,96428.0,0.3608]
[1734927138481,0.3608,96438.0,96428.0,0.3608]
[1734927138685,0.3608,96438.0,96429.0,0.3608]
[1734927139081,0.37089491,96451.0,96437.0,0.3608]
[1734927139082,0.00056001,96451.0,96437.0,0.3608]
[1734927139381,0.051893,96453.0,96448.0,0.001]
[1734927139793,0.051893,96453.0,96445.0,0.3608]
[1734927139990,0.051893,96453.0,96439.0,0.0519]
[1734927140188,0.1035943,96460.0,96440.0,0.1035943]
[1734927140382,0.02572397,96461.0,96448.0,0.001]
[1734927140383,0.01016396,96461.0,96448.0,0.001]
[1734927140691,0.051889,96460.0,96448.0,0.001]
[1734927141386,0.05189,96459.0,96448.0,0.001]
[1734927141586,0.12889,96459.0,96448.0,0.001]
[1734927141892,0.12889,96459.0,96445.0,0.3608]
[1734927141893,0.051896,96447.0,96445.0,0.002]
[1734927142586,0.0519,96439.0,96425.0,0.3608]
[1734927142786,0.0519,96439.0,96410.0,0.1035943]
[1734927142996,0.128901,96438.0,96422.0,0.051909]
[1734927143185,0.1035943,96432.0,96406.0,0.43372]
[1734927143392,0.051907,96428.0,96407.0,0.0795]
[1734927144092,0.3608,96431.0,96409.0,0.01044321]
[1734927144093,0.051909,96424.0,96409.0,0.01044321]
[1734927144286,0.051909,96423.0,96406.0,0.3608]
[1734927144592,0.202109,96423.0,96406.0,0.3608]
[1734927144985,0.202109,96423.0,96406.0,0.37121744]
[1734927145185,0.202109,96423.0,96406.0,0.42313544]
[1734927145693,0.205109,96423.0,96414.0,0.00255561]
[1734927146892,0.1532,96423.0,96415.0,0.3608]
[1734927148293,0.16362786,96423.0,96415.0,0.3618]
[1734927149381,0.051911,96419.0,96415.0,0.001]
[1734927151092,0.051918,96406.0,96387.0,0.60561439]
[1734927151299,0.05192,96402.0,96387.0,0.25614699]
[1734927151594,0.051921,96400.0,96389.0,0.18361079]
[1734927152689,0.051922,96398.0,96389.0,0.18361079]
[1734927152889,0.051922,96398.0,96383.0,0.01050312]
[1734927153182,0.01309075,96400.0,96367.0,0.18361079]
[1734927153383,0.003,96400.0,96394.0,0.3608]
[1734927154298,0.0701,96399.0,96394.0,0.3608]
[1734927155691,0.0721,96399.0,96394.0,0.3608]
[1734927155886,0.0721,96399.0,96387.0,0.08247735]
[1734927156088,0.0721,96399.0,96386.0,0.3608]
[1734927157096,0.0721,96399.0,96398.0,0.3608]
[1734927157297,0.0721,96399.0,96394.0,0.051924]
[1734927157484,0.0721,96399.0,96386.0,0.3608]
[1734927158393,0.0701,96399.0,96386.0,0.3608]
[1734927158602,0.0711,96399.0,96395.0,0.3608]
[1734927159697,1.1e-07,96421.0,96414.0,0.051914]
[1734927159899,0.051896,96447.0,96427.0,0.051907]
[1734927160200,0.43196481,96457.0,96420.0,0.72284]
[1734927160201,0.44752482,96457.0,96420.0,0.72284]
[1734927160390,0.18575663,96442.0,96434.0,0.3608]
[1734927160796,0.18575663,96442.0,96434.0,0.412703]
[1734927160993,0.18575663,96442.0,96440.0,0.0519]
[1734927162495,0.051894,96452.0,96441.0,0.051899]
[1734927162691,0.051894,96452.0,96447.0,0.3608]
[1734927163091,0.3608,96482.0,96447.0,0.3608]
[1734927163402,0.051889,96461.0,96455.0,0.3608]
[1734927165599,0.0698,96466.0,96447.0,0.3608]
[1734927165795,0.1035943,96457.0,96447.0,0.3608]
[1734927166695,0.1035943,96457.0,96448.0,0.051895]
[1734927167795,0.1035943,96457.0,96447.0,0.3608]
[1734927168304,0.1035943,96457.0,96455.0,0.3608]
[1734927168598,0.1035943,96465.0,96451.0,0.051894]
[1734927169192,0.3608,96464.0,96451.0,0.051894]
[1734927169794,0.051888,96463.0,96447.0,0.3608]
[1734927171197,0.1035943,96460.0,96447.0,0.3608]
[1734927171387,0.051893,96452.0,96435.0,0.3608]
[1734927172701,0.1554913,96445.0,96435.0,0.004]